fUSD/lending_fUSD_20250610
["ID","MTS","AMOUNT","RATE_DAILY","PERIOD"]
[365204093,1749532243490,-366.59940288,0.00016438,2]
[365204094,1749532243500,-652.0,0.00016438,2]
[365204095,1749532243509,-490.0,0.00016438,2]
[365204096,1749532243518,-490.0,0.00016438,2]
[365204097,1749532243528,-490.0,0.00016438,2]
[365204098,1749532243537,-675.13,0.00016438,2]
[365204099,1749532243547,-490.0,0.00016438,2]
[365204100,1749532243556,-490.0,0.00016438,2]
[365204101,1749532243566,-353.1767985,0.00016438,2]
[365204102,1749532243575,-490.0,0.00016438,2]
[365204103,1749532243585,-490.0,0.00016438,2]
[365204104,1749532243594,-490.0,0.00016438,2]
[365204105,1749532243604,-490.0,0.00016438,2]
[365204106,1749532243613,-490.0,0.00016438,2]
[365204107,1749532243622,-490.0,0.00016438,2]
[365204108,1749532243632,-490.0,0.00016438,2]
[365204109,1749532243641,-490.0,0.00016438,2]
[365204110,1749532243651,-490.0,0.00016438,2]
[365204111,1749532243661,-490.0,0.00016438,2]
[365204112,1749532243670,-490.0,0.00016438,2]
[365204113,1749532243679,-490.0,0.00016438,2]
[365204114,1749532243688,-490.0,0.00016438,2]
[365204115,1749532243697,-480.0,0.00016438,2]
[365204116,1749532243707,-490.0,0.00016438,2]
[365204117,1749532243716,-497.21,0.00016438,2]
[365204118,1749532243726,-296.27812312,0.00016438,2]
[365204119,1749532243735,-490.0,0.00016438,2]
[365204120,1749532243745,-787.54,0.00016438,2]
[365204121,1749532243754,-490.68,0.00016438,2]
[365204122,1749532243763,-490.0,0.00016438,2]
[365204123,1749532243773,-490.0,0.00016438,2]
[365204124,1749532243782,-490.0,0.00016438,2]
[365204125,1749532243791,-490.0,0.00016438,2]
[365204126,1749532243801,-490.0,0.00016438,2]
[365204127,1749532243810,-490.0,0.00016438,2]
[365204128,1749532243819,-490.0,0.00016438,2]
[365204129,1749532243828,-490.0,0.00016438,2]
[365204130,1749532243838,-490.0,0.00016438,2]
[365204131,1749532243847,-654.84,0.00016438,2]
[365204132,1749532243856,-490.0,0.00016438,2]
[365204133,1749532243871,-490.0,0.00016438,2]
[365204134,1749532243880,-490.0,0.00016438,2]
[365204135,1749532243889,-490.0,0.00016438,2]
[365204136,1749532243899,-490.0,0.00016438,2]
[365204137,1749532243908,-533.17,0.00016438,2]
[365204138,1749532243918,-490.0,0.00016438,2]
[365204139,1749532243927,-490.0,0.00016438,2]
[365204140,1749532243937,-674.67,0.00016438,2]
[365204141,1749532243947,-490.0,0.00016438,2]
[365204142,1749532243957,-500.0,0.00016473,2]
[365204143,1749532243966,-500.0,0.00016473,2]
[365204144,1749532243975,-880.18,0.0001648,2]
[365204145,1749532243985,-298.69,0.0001648,2]
[365204146,1749532243995,-2691.43,0.0001648,2]
[365204147,1749532244004,-4956.5,0.00016481,2]
[365204148,1749532244014,-299.99,0.00016481,4]
[365204149,1749532244023,-150.99,0.00016481,2]
[365204150,1749532244033,-160.56397885,0.00016502,2]
[365204151,1749532244042,-151.0,0.00016519,2]
[365204152,1749532244052,-207.4,0.00016519,2]
[365204153,1749532244061,-4778.25157621,0.00016599,2]
[365204154,1749532244071,-821.0,0.000166,2]
[365204155,1749532244081,-500.0,0.00016601,2]
[365204156,1749532244091,-630.78,0.00016601,2]
[365204157,1749532244100,-500.0,0.00016601,2]
[365204158,1749532244109,-500.0,0.00016601,2]
[365204159,1749532244119,-151.0,0.00016602,2]
[365204160,1749532244128,-383.908865,0.00016602,2]
[365204161,1749532244137,-383.908865,0.00016602,2]
[365204162,1749532244147,-151.0,0.00016602,2]
[365204163,1749532244157,-151.0,0.00016602,2]
[365204164,1749532244167,-151.0,0.00016602,2]
[365204165,1749532244176,-151.0,0.00016602,2]
[365204166,1749532244186,-576.36655747,0.00016602,2]
[365204167,1749532244195,-527.05,0.00016602,2]
[365204168,1749532244205,-490.0,0.00016602,2]
[365204169,1749532244215,-490.0,0.00016602,2]
[365204170,1749532244224,-490.0,0.00016602,2]
[365204171,1749532244233,-490.0,0.00016602,2]
[365204172,1749532244243,-490.0,0.00016602,2]
[365204173,1749532244253,-585.18,0.00016602,2]
[365204174,1749532244263,-345.92658604,0.00016602,2]
[365204175,1749532244272,-490.0,0.00016602,2]
[365204176,1749532244282,-278.31368212,0.00016602,2]
[365204177,1749532244292,-235.48687027,0.00016602,2]
[365204178,1749532244302,-490.0,0.00016602,2]
[365204179,1749532244312,-490.0,0.00016602,2]
[365204180,1749532244322,-490.0,0.00016602,2]
[365204181,1749532244332,-410.36527834,0.00016602,2]
[365204182,1749532244342,-495.99294104,0.00016602,2]
[365204183,1749532244352,-490.0,0.00016602,2]
[365204184,1749532244362,-490.0,0.00016602,2]
[365204185,1749532244372,-490.0,0.00016602,2]
[365204186,1749532244382,-490.0,0.00016602,2]
[365204187,1749532244391,-490.0,0.00016602,2]
[365204188,1749532244632,-490.0,0.00016602,2]
[365204189,1749532244644,-490.0,0.00016602,2]
[365204190,1749532244654,-490.0,0.00016602,2]
[365204191,1749532244663,-490.0,0.00016602,2]
[365204192,1749532244672,-490.0,0.00016602,2]
[365204193,1749532244681,-490.0,0.00016602,2]
[365204194,1749532244690,-490.0,0.00016602,2]
[365204195,1749532244699,-490.0,0.00016602,2]
[365204196,1749532244708,-490.0,0.00016602,2]
[365204197,1749532244717,-490.0,0.00016602,2]
[365204198,1749532244727,-490.0,0.00016602,2]
[365204199,1749532244736,-490.0,0.00016602,2]
[365204200,1749532244745,-490.0,0.00016602,2]
[365204201,1749532244756,-224.47920217,0.00016602,2]
[365204202,1749532244765,-490.0,0.00016602,2]
[365204203,1749532244775,-490.0,0.00016602,2]
[365204204,1749532244784,-271.63088436,0.00016602,2]
[365204205,1749532244794,-490.0,0.00016602,2]
[365204206,1749532244803,-490.0,0.00016602,2]
[365204207,1749532244813,-490.0,0.00016602,2]
[365204208,1749532244822,-490.0,0.00016602,2]
[365204209,1749532244833,-1639.41,0.00016602,2]
[365204210,1749532244843,-858.01,0.00016602,2]
[365204211,1749532244854,-490.0,0.00016602,2]
[365204212,1749532244865,-490.0,0.00016602,2]
[365204213,1749532244875,-209.32,0.00016602,2]
[365204214,1749532244885,-490.0,0.00016602,2]
[365204215,1749532244894,-490.0,0.00016602,2]
[365204216,1749532244903,-490.0,0.00016602,2]
[365204217,1749532244914,-490.0,0.00016602,2]
[365204218,1749532244924,-490.0,0.00016602,2]
[365204219,1749532244933,-490.0,0.00016602,2]
[365204220,1749532244945,-555.49708711,0.00016602,2]
[365204221,1749532244955,-490.0,0.00016602,2]
[365204222,1749532244964,-490.0,0.00016602,2]
[365204223,1749532244974,-490.0,0.00016602,2]
[365204224,1749532244983,-328.35864709,0.00016602,2]
[365204225,1749532244992,-681.03,0.00016602,2]
[365204226,1749532245002,-490.0,0.00016602,2]
[365204227,1749532245011,-490.0,0.00016602,2]
[365204228,1749532245021,-490.0,0.00016602,2]
[365204229,1749532245031,-490.0,0.00016602,2]
[365204230,1749532245040,-608.60232357,0.00016602,2]
[365204231,1749532245050,-1245.6,0.00016602,2]
[365204232,1749532245060,-490.0,0.00016602,2]
[365204233,1749532245069,-490.0,0.00016602,2]
[365204234,1749532245079,-490.0,0.00016602,2]
[365204235,1749532245089,-870.83,0.00016602,2]
[365204236,1749532245098,-608.58976489,0.00016602,2]
[365204237,1749532245107,-490.0,0.00016602,2]
[365204238,1749532245117,-490.0,0.00016602,2]
[365204239,1749532245127,-490.0,0.00016602,2]
[365204240,1749532245136,-490.0,0.00016602,2]
[365204241,1749532245145,-635.07,0.00016602,2]
[365204242,1749532245155,-490.0,0.00016602,2]
[365204243,1749532245164,-490.0,0.00016602,2]
[365204244,1749532245173,-490.0,0.00016602,2]
[365204245,1749532245183,-426.11899253,0.00016602,2]
[365204246,1749532245192,-448.06132189,0.00016602,2]
[365204247,1749532245202,-490.0,0.00016602,2]
[365204248,1749532245211,-490.0,0.00016602,2]
[365204249,1749532245220,-490.0,0.00016602,2]
[365204250,1749532245230,-490.0,0.00016602,2]
[365204251,1749532245239,-490.0,0.00016602,2]
[365204252,1749532245248,-490.0,0.00016602,2]
[365204253,1749532245258,-490.0,0.00016602,2]
[365204254,1749532245267,-490.0,0.00016602,2]
[365204255,1749532245277,-490.0,0.00016602,2]
[365204256,1749532245286,-490.0,0.00016602,2]
[365204257,1749532245296,-490.0,0.00016602,2]
[365204258,1749532245305,-490.0,0.00016602,2]
[365204259,1749532245314,-490.0,0.00016602,2]
[365204260,1749532245324,-470.39059269,0.00016602,2]
[365204261,1749532245333,-187.94879191,0.00016602,2]
[365204262,1749532245343,-490.0,0.00016602,2]
[365204263,1749532245352,-301.87967606,0.00016602,2]
[365204264,1749532245362,-1275.52,0.00016602,2]
[365204265,1749532245371,-490.0,0.00016602,2]
[365204266,1749532245380,-767.53,0.00016602,2]
[365204267,1749532245390,-490.0,0.00016602,2]
[365204268,1749532245399,-873.91,0.00016602,2]
[365204269,1749532245409,-496.34,0.00016602,2]
[365204270,1749532245418,-490.0,0.00016602,2]
[365204271,1749532245428,-490.0,0.00016602,2]
[365204272,1749532245437,-490.0,0.00016602,2]
[365204273,1749532245446,-490.0,0.00016602,2]
[365204274,1749532245455,-490.0,0.00016602,2]
[365204275,1749532245465,-490.0,0.00016602,2]
[365204276,1749532245474,-490.0,0.00016602,2]
[365204277,1749532245484,-490.0,0.00016602,2]
[365204278,1749532245493,-490.0,0.00016602,2]
[365204279,1749532245502,-480.0,0.00016602,2]
[365204280,1749532245511,-490.0,0.00016602,2]
[365204281,1749532245521,-490.0,0.00016602,2]
[365204282,1749532245530,-490.0,0.00016602,2]
[365204283,1749532245539,-490.0,0.00016602,2]
[365204284,1749532245549,-490.0,0.00016602,2]
[365204285,1749532245558,-2485.01,0.00016602,2]
[365204286,1749532245567,-490.0,0.00016602,2]
[365204287,1749532245576,-490.0,0.00016602,2]
[365204288,1749532245587,-490.0,0.00016602,2]
[365204289,1749532245596,-490.0,0.00016602,2]
[365204290,1749532245605,-490.0,0.00016602,2]
[365204291,1749532245615,-490.0,0.00016602,2]
[365204292,1749532245624,-490.0,0.00016602,2]
[365204293,1749532245634,-369.14141995,0.00016602,2]
[365204294,1749532245644,-490.0,0.00016602,2]
[365204295,1749532245653,-490.0,0.00016602,2]
[365204296,1749532245662,-490.0,0.00016602,2]
[365204297,1749532245671,-737.37,0.00016602,2]
[365204298,1749532245680,-836.74,0.00016602,2]
[365204299,1749532245690,-490.0,0.00016602,2]
[365204301,1749532245699,-490.0,0.00016602,2]
[365204302,1749532245707,-490.0,0.00016602,2]
[365204303,1749532245717,-652.0,0.00016602,2]
[365204304,1749532245726,-490.0,0.00016602,2]
[365204305,1749532245736,-490.0,0.00016602,2]
[365204306,1749532245745,-675.13,0.00016602,2]
[365204307,1749532245756,-490.0,0.00016602,2]
[365204308,1749532245765,-490.0,0.00016602,2]
[365204309,1749532245775,-490.0,0.00016602,2]
[365204310,1749532245784,-490.0,0.00016602,2]
[365204311,1749532245794,-490.0,0.00016602,2]
[365204312,1749532245803,-490.0,0.00016602,2]
[365204313,1749532245813,-490.0,0.00016602,2]
[365204314,1749532245823,-490.0,0.00016602,2]
[365204315,1749532245832,-490.0,0.00016602,2]
[365204316,1749532245842,-490.0,0.00016602,2]
[365204317,1749532245851,-490.0,0.00016602,2]
[365204318,1749532245861,-490.0,0.00016602,2]
[365204319,1749532245873,-490.0,0.00016602,2]
[365204320,1749532245883,-787.54,0.00016602,2]
[365204321,1749532245892,-490.0,0.00016602,2]
[365204322,1749532245902,-490.0,0.00016602,2]
[365204323,1749532245911,-490.0,0.00016602,2]
[365204324,1749532245920,-490.0,0.00016602,2]
[365204325,1749532245930,-490.0,0.00016602,2]
[365204326,1749532245939,-654.84,0.00016602,2]
[365204327,1749532245949,-490.0,0.00016602,2]
[365204328,1749532245959,-490.0,0.00016602,2]
[365204329,1749532245968,-490.0,0.00016602,2]
[365204330,1749532245977,-544.67444996,0.00016602,2]
[365204331,1749532245987,-533.17,0.00016602,2]
[365204332,1749532245996,-490.0,0.00016602,2]
[365204333,1749532246006,-674.67,0.00016602,2]
[365204334,1749532246015,-443.28158326,0.00016602,2]
[365204335,1749532246025,-2960.74444023,0.00016667,2]
[365204336,1749532246034,-500.0,0.00016685,2]
[365204337,1749532246044,-500.0,0.00016758,2]
[365204338,1749532246053,-500.0,0.00016758,2]
[365204339,1749532246063,-151.0,0.00016767,2]
[365204340,1749532246072,-151.0,0.00016767,2]
[365204341,1749532246083,-151.0,0.00016767,2]
[365204342,1749532246092,-383.908865,0.00016767,2]
[365204343,1749532246102,-383.908865,0.00016767,2]
[365204344,1749532246112,-151.0,0.00016767,2]
[365204345,1749532246121,-151.0,0.00016767,2]
[365204346,1749532246130,-151.0,0.00016767,2]
[365204347,1749532246139,-151.0,0.00016767,2]
[365204348,1749532246149,-151.0,0.00016767,2]
[365204349,1749532246159,-490.0,0.00016767,2]
[365204350,1749532246168,-490.0,0.00016767,2]
[365204351,1749532246178,-173.02,0.00016767,2]
[365204352,1749532246188,-490.0,0.00016767,2]
[365204353,1749532246197,-632.71,0.00016767,2]
[365204354,1749532246207,-490.0,0.00016767,2]
[365204356,1749532246217,-490.0,0.00016767,2]
[365204357,1749532246227,-490.0,0.00016767,2]
[365204358,1749532246236,-490.0,0.00016767,2]
[365204359,1749532246247,-510.58,0.00016767,2]
[365204360,1749532246257,-504.07025092,0.00016767,2]
[365204361,1749532246266,-490.0,0.00016767,2]
[365204362,1749532246276,-480.0,0.00016767,2]
[365204363,1749532246286,-490.0,0.00016767,2]
[365204364,1749532246295,-604.07256205,0.00016767,2]
[365204365,1749532246305,-490.0,0.00016767,2]
[365204366,1749532246315,-490.0,0.00016767,2]
[365204367,1749532246324,-490.0,0.00016767,2]
[365204368,1749532246334,-1639.41,0.00016767,2]
[365204369,1749532246344,-858.01,0.00016767,2]
[365204370,1749532246353,-490.0,0.00016767,2]
[365204371,1749532246362,-281.05,0.00016767,2]
[365204372,1749532246372,-490.0,0.00016767,2]
[365204374,1749532246382,-490.0,0.00016767,2]
[365204375,1749532246391,-405.52599765,0.00016767,2]
[365204376,1749532246401,-490.0,0.00016767,2]
[365204377,1749532246410,-588.50528208,0.00016767,2]
[365204378,1749532246419,-490.0,0.00016767,2]
[365204379,1749532246429,-480.0,0.00016767,2]
[365204380,1749532246439,-490.0,0.00016767,2]
[365204381,1749532246449,-490.0,0.00016767,2]
[365204382,1749532246459,-681.03,0.00016767,2]
[365204383,1749532246468,-490.0,0.00016767,2]
[365204384,1749532246478,-490.0,0.00016767,2]
[365204385,1749532246487,-513.06,0.00016767,2]
[365204386,1749532246497,-1245.6,0.00016767,2]
[365204387,1749532246506,-481.34,0.00016767,2]
[365204388,1749532246516,-490.0,0.00016767,2]
[365204389,1749532246525,-490.0,0.00016767,2]
[365204390,1749532246535,-870.83,0.00016767,2]
[365204391,1749532246544,-490.0,0.00016767,2]
[365204392,1749532246554,-490.0,0.00016767,2]
[365204393,1749532246564,-490.0,0.00016767,2]
[365204394,1749532246573,-635.07,0.00016767,2]
[365204395,1749532246583,-547.01,0.00016767,2]
[365204396,1749532246592,-490.0,0.00016767,2]
[365204397,1749532246602,-490.0,0.00016767,2]
[365204398,1749532246611,-490.0,0.00016767,2]
[365204399,1749532246621,-490.0,0.00016767,2]
[365204400,1749532246630,-490.0,0.00016767,2]
[365204401,1749532246639,-490.0,0.00016767,2]
[365204402,1749532246649,-306.62367873,0.00016767,2]
[365204403,1749532246658,-490.0,0.00016767,2]
[365204404,1749532246668,-490.0,0.00016767,2]
[365204405,1749532246678,-375.47778807,0.00016767,2]
[365204406,1749532246687,-1275.52,0.00016767,2]
[365204407,1749532246697,-767.53,0.00016767,2]
[365204408,1749532246706,-490.0,0.00016767,2]
[365204409,1749532246716,-873.91,0.00016767,2]
[365204410,1749532246726,-490.0,0.00016767,2]
[365204411,1749532246735,-490.0,0.00016767,2]
[365204412,1749532246745,-490.0,0.00016767,2]
[365204413,1749532246755,-420.0,0.00016767,2]
[365204414,1749532246765,-490.0,0.00016767,2]
[365204415,1749532246775,-490.0,0.00016767,2]
[365204416,1749532246784,-490.0,0.00016767,2]
[365204417,1749532246793,-490.0,0.00016767,2]
[365204418,1749532246802,-490.0,0.00016767,2]
[365204419,1749532246812,-490.0,0.00016767,2]
[365204420,1749532246821,-2485.01,0.00016767,2]
[365204421,1749532246830,-490.0,0.00016767,2]
[365204422,1749532246840,-221.57,0.00016767,2]
[365204423,1749532246850,-490.0,0.00016767,2]
[365204424,1749532246860,-490.0,0.00016767,2]
[365204425,1749532246872,-490.0,0.00016767,2]
[365204426,1749532246882,-490.0,0.00016767,2]
[365204427,1749532246891,-378.91390264,0.00016767,2]
[365204428,1749532246903,-490.0,0.00016767,2]
[365204429,1749532246913,-737.37,0.00016767,2]
[365204430,1749532246922,-836.74,0.00016767,2]
[365204431,1749532246932,-490.0,0.00016767,2]
[365204432,1749532246943,-490.0,0.00016767,2]
[365204433,1749532246953,-490.0,0.00016767,2]
[365204434,1749532246964,-652.0,0.00016767,2]
[365204435,1749532246974,-165.8,0.00016767,2]
[365204436,1749532246984,-448.73011776,0.00016767,2]
[365204437,1749532246993,-675.13,0.00016767,2]
[365204438,1749532247003,-490.0,0.00016767,2]
[365204439,1749532247012,-490.0,0.00016767,2]
[365204440,1749532247022,-620.92,0.00016767,2]
[365204441,1749532247032,-490.0,0.00016767,2]
[365204442,1749532247041,-490.0,0.00016767,2]
[365204443,1749532247051,-490.0,0.00016767,2]
[365204444,1749532247060,-490.0,0.00016767,2]
[365204445,1749532247070,-490.0,0.00016767,2]
[365204446,1749532247080,-434.96623077,0.00016767,2]
[365204447,1749532247089,-490.0,0.00016767,2]
[365204448,1749532247099,-787.54,0.00016767,2]
[365204449,1749532247108,-490.0,0.00016767,2]
[365204450,1749532247118,-490.0,0.00016767,2]
[365204451,1749532247127,-260.24117882,0.00016767,2]
[365204452,1749532247136,-490.0,0.00016767,2]
[365204453,1749532247146,-490.0,0.00016767,2]
[365204454,1749532247155,-654.84,0.00016767,2]
[365204455,1749532247165,-490.0,0.00016767,2]
[365204456,1749532247174,-490.0,0.00016767,2]
[365204457,1749532247183,-490.0,0.00016767,2]
[365204458,1749532247193,-533.17,0.00016767,2]
[365204459,1749532247202,-490.0,0.00016767,2]
[365204460,1749532247212,-674.67,0.00016767,2]
[365204461,1749532247221,-275.0,0.00016776,3]
[365204462,1749532247231,-4778.25157621,0.0001686,2]
[365204463,1749532247241,-2685.89798758,0.00016868,2]
[365204464,1749532247250,-2960.74444018,0.00016891,2]
[365204465,1749532247259,-1163.41,0.00016922,2]
[365204466,1749532247269,-152.198847,0.00016931,2]
[365204467,1749532247278,-151.0,0.00016931,2]
[365204468,1749532247287,-151.0,0.00016931,2]
[365204469,1749532247296,-383.908865,0.00016931,2]
[365204470,1749532247305,-383.908865,0.00016931,2]
[365204471,1749532247314,-151.0,0.00016931,2]
[365204472,1749532247323,-216.558878,0.00016931,2]
[365204473,1749532247333,-151.0,0.00016931,2]
[365204474,1749532247342,-151.0,0.00016931,2]
[365204475,1749532247351,-490.0,0.00016931,2]
[365204476,1749532247361,-490.0,0.00016931,2]
[365204477,1749532247370,-247.90185628,0.00016931,2]
[365204478,1749532247380,-490.0,0.00016931,2]
[365204479,1749532247389,-490.0,0.00016931,2]
[365204480,1749532247399,-490.0,0.00016931,2]
[365204481,1749532247408,-490.0,0.00016931,2]
[365204482,1749532247418,-490.0,0.00016931,2]
[365204483,1749532247427,-490.0,0.00016931,2]
[365204484,1749532247437,-490.0,0.00016931,2]
[365204485,1749532247447,-1639.41,0.00016931,2]
[365204486,1749532247457,-858.01,0.00016931,2]
[365204487,1749532247467,-490.0,0.00016931,2]
[365204488,1749532247476,-490.0,0.00016931,2]
[365204489,1749532247486,-490.0,0.00016931,2]
[365204490,1749532247495,-490.0,0.00016931,2]
[365204491,1749532247504,-490.0,0.00016931,2]
[365204492,1749532247514,-490.0,0.00016931,2]
[365204493,1749532247523,-490.0,0.00016931,2]
[365204494,1749532247533,-681.03,0.00016931,2]
[365204495,1749532247543,-490.0,0.00016931,2]
[365204496,1749532247552,-490.0,0.00016931,2]
[365204497,1749532247562,-1245.6,0.00016931,2]
[365204498,1749532247571,-490.0,0.00016931,2]
[365204499,1749532247583,-490.0,0.00016931,2]
[365204500,1749532247593,-870.83,0.00016931,2]
[365204501,1749532247602,-371.58,0.00016931,2]
[365204502,1749532247611,-490.0,0.00016931,2]
[365204503,1749532247621,-490.0,0.00016931,2]
[365204504,1749532247632,-635.07,0.00016931,2]
[365204505,1749532247642,-490.0,0.00016931,2]
[365204506,1749532247652,-490.0,0.00016931,2]
[365204507,1749532247662,-490.0,0.00016931,2]
[365204508,1749532247671,-490.0,0.00016931,2]
[365204509,1749532247682,-490.0,0.00016931,2]
[365204510,1749532247692,-490.0,0.00016931,2]
[365204511,1749532247703,-490.0,0.00016931,2]
[365204512,1749532247714,-1275.52,0.00016931,2]
[365204513,1749532247723,-767.53,0.00016931,2]
[365204514,1749532247732,-490.0,0.00016931,2]
[365204515,1749532247742,-873.91,0.00016931,2]
[365204516,1749532247752,-346.35,0.00016931,2]
[365204517,1749532247762,-490.0,0.00016931,2]
[365204518,1749532247771,-490.0,0.00016931,2]
[365204519,1749532247781,-480.0,0.00016931,2]
[365204520,1749532247790,-490.0,0.00016931,2]
[365204521,1749532247800,-490.0,0.00016931,2]
[365204522,1749532247809,-490.0,0.00016931,2]
[365204523,1749532247818,-2485.01,0.00016931,2]
[365204524,1749532247828,-490.0,0.00016931,2]
[365204525,1749532247841,-490.0,0.00016931,2]
[365204526,1749532247850,-490.0,0.00016931,2]
[365204527,1749532247859,-356.32,0.00016931,2]
[365204528,1749532247872,-371.5,0.00016931,2]
[365204529,1749532247882,-490.0,0.00016931,2]
[365204530,1749532247892,-737.37,0.00016931,2]
[365204531,1749532247901,-836.74,0.00016931,2]
[365204532,1749532247911,-490.0,0.00016931,2]
[365204533,1749532247920,-490.0,0.00016931,2]
[365204534,1749532247930,-652.0,0.00016931,2]
[365204535,1749532247939,-675.13,0.00016931,2]
[365204536,1749532247950,-490.0,0.00016931,2]
[365204537,1749532247960,-490.0,0.00016931,2]
[365204538,1749532247970,-490.0,0.00016931,2]
[365204539,1749532247980,-490.0,0.00016931,2]
[365204540,1749532247990,-504.1012949,0.00016931,2]
[365204541,1749532248000,-490.0,0.00016931,2]
[365204542,1749532248009,-490.0,0.00016931,2]
[365204543,1749532248019,-490.0,0.00016931,2]
[365204544,1749532248029,-787.54,0.00016931,2]
[365204545,1749532248038,-490.0,0.00016931,2]
[365204546,1749532248048,-209.73211381,0.00016931,2]
[365204547,1749532248057,-490.0,0.00016931,2]
[365204548,1749532248067,-654.84,0.00016931,2]
[365204549,1749532248076,-490.0,0.00016931,2]
[365204550,1749532248089,-490.0,0.00016931,2]
[365204551,1749532248099,-490.0,0.00016931,2]
[365204552,1749532248108,-533.17,0.00016931,2]
[365204553,1749532248118,-251.59378821,0.00016931,2]
[365204554,1749532248128,-674.67,0.00016931,2]
[365204555,1749532248138,-150.056,0.00016977,2]
[365204556,1749532248148,-150.128,0.00016977,2]
[365204557,1749532248158,-150.0,0.00016977,2]
[365204558,1749532248168,-833.29909032,0.00016993,2]
[365204559,1749532248177,-1001.6933,0.00016999,2]
[365204560,1749532248187,-1000.0,0.00017006,2]
[365204561,1749532248197,-467.0,0.00017014,2]
[365204562,1749532248207,-500.0,0.00017021,2]
[365204563,1749532248217,-802.0,0.00017024,2]
[365204564,1749532248226,-637.0,0.00017024,2]
[365204565,1749532248236,-927.0,0.00017024,2]
[365204566,1749532248246,-590.0,0.00017024,2]
[365204567,1749532248255,-1275.0,0.00017024,2]
[365204568,1749532248265,-558.0,0.00017024,2]
[365204569,1749532248275,-2001.0,0.00017024,2]
[365204570,1749532248284,-1256.0,0.00017024,2]
[365204571,1749532248294,-1159.0,0.00017037,2]
[365204572,1749532248304,-155.0,0.00017037,2]
[365204573,1749532248314,-4085.0,0.00017037,2]
[365204574,1749532248323,-7064.0,0.00017037,2]
[365204575,1749532248334,-883.0,0.00017037,2]
[365204576,1749532248344,-152.692013,0.00017095,2]
[365204577,1749532248354,-383.908865,0.00017095,2]
[365204578,1749532248363,-383.908865,0.00017095,2]
[365204579,1749532248373,-151.0,0.00017095,2]
[365204580,1749532248383,-151.0,0.00017095,2]
[365204581,1749532248392,-151.0,0.00017095,2]
[365204582,1749532248401,-519.44,0.00017095,2]
[365204583,1749532248411,-415.53,0.00017095,2]
[365204584,1749532248420,-490.0,0.00017095,2]
[365204585,1749532248429,-490.0,0.00017095,2]
[365204586,1749532248438,-504.2230727,0.00017095,2]
[365204587,1749532248448,-490.0,0.00017095,2]
[365204588,1749532248458,-490.0,0.00017095,2]
[365204589,1749532248467,-490.0,0.00017095,2]
[365204590,1749532248476,-1639.41,0.00017095,2]
[365204591,1749532248486,-858.01,0.00017095,2]
[365204592,1749532248495,-247.52747987,0.00017095,2]
[365204593,1749532248505,-490.0,0.00017095,2]
[365204594,1749532248514,-490.0,0.00017095,2]
[365204595,1749532248524,-490.0,0.00017095,2]